bitfinex-derivatives/quotes_BTCF0:USTF0_20250411
["timestamp","ask_amount","ask_price","bid_price","bid_amount"]
[1744371211953,0.1823101,82327.0,82326.0,0.13732198]
[1744371212148,0.1894673,82329.0,82326.0,0.13732198]
[1744371212351,0.1215358,82328.0,82327.0,0.01650869]
[1744371212549,0.1215372,82327.0,82326.0,0.12081329]
[1744371212741,0.1640372,82327.0,82326.0,0.25885719]
[1744371213048,0.2070372,82327.0,82326.0,0.25903133]
[1744371213254,0.2070372,82327.0,82326.0,0.12081329]
[1744371213453,0.2070372,82327.0,82326.0,0.13700929]
[1744371214254,0.2070772,82327.0,82326.0,0.13700929]
[1744371214949,0.1215402,82325.0,82324.0,0.0816]
[1744371215156,0.1215476,82320.0,82311.0,0.0607803]
[1744371215345,0.1215476,82320.0,82315.0,0.1215543]
[1744371215545,0.2048476,82320.0,82314.0,0.0607781]
[1744371215756,0.2048476,82320.0,82317.0,0.1215517]
[1744371216056,0.5656476,82320.0,82319.0,0.12173119]
[1744371216255,0.5656476,82320.0,82319.0,0.00018219]
[1744371216650,0.5656476,82320.0,82319.0,0.12173119]
[1744371217157,0.5656476,82320.0,82319.0,0.00018219]
[1744371217745,0.8156476,82320.0,82319.0,0.00018219]
[1744371217952,0.1215682,82306.0,82298.0,4e-05]
[1744371218151,0.4823682,82306.0,82294.0,0.0406]
[1744371218350,0.6049682,82306.0,82305.0,0.00043821]
[1744371220159,0.1215801,82298.0,82297.0,0.00018219]
[1744371220361,0.4823801,82298.0,82297.0,0.00018219]
[1744371220661,0.5667801,82298.0,82297.0,0.00018219]
[1744371220851,0.5667801,82298.0,82297.0,0.00022219]
[1744371221657,0.1215889,82292.0,82291.0,0.00048608]
[1744371222047,0.2059889,82292.0,82291.0,0.00048608]
[1744371222256,0.2059889,82292.0,82278.0,5.4e-05]
[1744371222257,0.1216081,82279.0,82278.0,5.4e-05]
[1744371222452,0.8432081,82279.0,82278.0,5.4e-05]
[1744371222659,0.12162,82271.0,82270.0,0.21802158]
[1744371222959,0.12162,82271.0,82270.0,0.18267666]
[1744371223151,0.12162,82271.0,82270.0,0.00060382]
[1744371223152,0.20352,82271.0,82270.0,0.00060382]
[1744371223761,0.20352,82271.0,82270.0,0.00064382]
[1744371224955,0.3608,82279.0,82278.0,0.1216096]
[1744371225159,0.1216058,82281.0,82278.0,0.1216096]
[1744371225160,0.3608,82289.0,82286.0,0.1215978]
[1744371225352,0.12177861,82287.0,82286.0,0.35626095]
[1744371225659,0.12177861,82287.0,82286.0,0.17418811]
[1744371225959,0.00018231,82287.0,82286.0,0.35626095]
[1744371226166,0.00018231,82287.0,82286.0,0.39646095]
[1744371226459,0.00018231,82287.0,82286.0,0.43676095]
[1744371226858,0.00018231,82287.0,82286.0,0.453188]
[1744371227362,0.00018231,82287.0,82286.0,0.45360951]
[1744371227557,0.00018231,82287.0,82286.0,0.43718246]
[1744371228458,0.00018231,82287.0,82286.0,0.45355503]
[1744371230559,0.0608678,82302.0,82286.0,0.45355503]
[1744371230560,8e-05,82302.0,82287.0,0.0607976]
[1744371230757,0.1216551,82302.0,82301.0,0.35623875]
[1744371230957,8e-05,82302.0,82301.0,0.35623875]
[1744371231257,8e-05,82302.0,82301.0,0.44223875]
[1744371231755,0.00012,82302.0,82301.0,0.44223875]
[1744371231963,0.1216942,82302.0,82301.0,0.23466315]
[1744371232164,0.0607878,82301.0,82300.0,0.0401]
[1744371232357,0.1439878,82301.0,82300.0,0.0401]
[1744371232562,0.1439878,82301.0,82294.0,0.09449031]
[1744371232563,0.1215845,82295.0,82294.0,0.0419]
[1744371232769,0.4823845,82295.0,82294.0,0.09449031]
[1744371232958,0.5242845,82295.0,82294.0,0.09449031]
[1744371233569,0.121586,82294.0,82293.0,0.00018231]
[1744371233769,0.162886,82294.0,82293.0,0.00018231]
[1744371234068,0.204786,82294.0,82293.0,0.00018231]
[1744371234264,0.204786,82294.0,82293.0,0.00022231]
[1744371234566,0.204786,82294.0,82274.0,0.0608076]
[1744371234567,0.1215963,82287.0,82274.0,0.0608076]
[1744371234863,0.4823963,82287.0,82281.0,0.0401]
[1744371235064,0.5658963,82287.0,82278.0,5.4e-05]
[1744371235668,0.1216214,82270.0,82262.0,0.00013286]
[1744371235866,0.4824214,82270.0,82269.0,1e-08]
[1744371236168,0.1216333,82262.0,82261.0,0.36098231]
[1744371236466,0.4824333,82262.0,82261.0,0.36098231]
[1744371237064,0.5661333,82262.0,82261.0,0.36098231]
[1744371237266,0.9073333,82262.0,82261.0,0.36098231]
[1744371237563,0.6573333,82262.0,82261.0,0.36098231]
[1744371238062,0.5661333,82262.0,82261.0,0.36098231]
[1744371238465,0.3608,82262.0,82261.0,0.59564546]
[1744371238662,0.121632,82263.0,82262.0,0.1216333]
[1744371238968,0.121632,82263.0,82262.0,0.43809645]
[1744371239263,0.27505482,82270.0,82269.0,0.1216229]
[1744371239463,0.39667622,82270.0,82269.0,0.35628605]
[1744371239969,0.39667622,82270.0,82269.0,0.23466315]
[1744371240165,0.39667622,82270.0,82269.0,0.31646315]
[1744371240365,0.27505482,82270.0,82269.0,0.43808605]
[1744371240566,0.27505482,82270.0,82269.0,0.45404801]
[1744371240871,0.30115161,82273.0,82272.0,0.1216185]
[1744371241258,0.30115161,82273.0,82272.0,0.35628165]
[1744371241462,0.30115161,82273.0,82272.0,0.37224361]
[1744371242472,0.17953461,82273.0,82272.0,0.37224361]
[1744371243366,0.00018231,82278.0,82277.0,0.1216111]
[1744371243565,0.00018231,82278.0,82277.0,0.35627425]
[1744371243772,0.3608,82297.0,82277.0,0.35627425]
[1744371243773,5.401e-05,82299.0,82298.0,0.1215801]
[1744371244073,0.060781,82311.0,82301.0,0.1215756]
[1744371244273,0.1216542,82302.0,82301.0,0.23466315]
[1744371244572,8e-05,82302.0,82301.0,0.35623875]
[1744371244767,0.1216542,82302.0,82301.0,0.37220071]
[1744371245770,0.1216542,82302.0,82301.0,0.25062511]
[1744371245971,0.1216542,82302.0,82301.0,0.01596196]
[1744371246574,0.1216542,82302.0,82291.0,0.1519946]
[1744371246575,0.1216026,82284.0,82279.0,0.060804]
[1744371246772,0.0608103,82271.0,82265.0,0.0608137]
[1744371247077,0.121618,82273.0,82272.0,0.1216167]
[1744371247472,0.121618,82273.0,82272.0,0.35627985]
[1744371247666,0.121618,82273.0,82272.0,0.44147985]
[1744371248471,0.121618,82273.0,82272.0,0.44148165]
[1744371250474,0.0419,82277.0,82276.0,0.1216126]
[1744371250672,0.3608,82278.0,82277.0,0.1216111]
[1744371250873,0.00018231,82281.0,82280.0,0.1216067]
[1744371251072,0.00018231,82281.0,82280.0,0.37370771]
[1744371252183,0.3608,82291.0,82290.0,0.1215919]
[1744371252373,0.3608,82291.0,82290.0,0.35625505]
[1744371252879,0.4823904,82291.0,82290.0,0.35625505]
[1744371253070,0.4823904,82291.0,82290.0,0.44235505]
[1744371253379,0.4823904,82291.0,82290.0,4e-05]
[1744371253577,0.6083304,82291.0,82290.0,8e-05]
[1744371255082,0.6082904,82291.0,82290.0,8e-05]
[1744371255266,0.6083304,82291.0,82290.0,8e-05]
[1744371256682,0.6083304,82291.0,82290.0,4e-05]
[1744371256974,0.6083304,82291.0,82290.0,8e-05]
[1744371258180,0.1216022,82283.0,82282.0,0.00018231]
[1744371258382,0.4824022,82283.0,82282.0,0.00018231]
[1744371258578,0.5671022,82283.0,82282.0,0.00018231]
[1744371259873,0.5671022,82283.0,82282.0,0.01613334]
[1744371260579,0.5671022,82283.0,82282.0,0.00018231]
[1744371261872,0.5671022,82283.0,82282.0,0.01619892]
[1744371263383,0.5671022,82283.0,82282.0,0.03410826]
[1744371265789,0.5671022,82283.0,82282.0,0.01619892]
[1744371266684,0.5245022,82283.0,82282.0,0.03495885]
[1744371266888,0.5245022,82283.0,82282.0,0.03491885]
[1744371267086,0.5245022,82283.0,82282.0,0.01615892]
[1744371267285,0.5637022,82283.0,82282.0,0.01615892]
[1744371267679,0.4824022,82283.0,82282.0,0.26908503]
[1744371268080,0.182402,82285.0,82284.0,0.1215993]
[1744371268287,0.0607998,82285.0,82284.0,0.21663917]
[1744371268480,0.00028689,82287.0,82286.0,0.1215978]
[1744371268683,0.12188319,82287.0,82286.0,0.37452391]
[1744371268883,0.12188319,82287.0,82286.0,0.41402391]
[1744371269491,0.12188319,82287.0,82286.0,0.43000052]
[1744371271695,0.00028689,82287.0,82286.0,0.43000052]
[1744371271893,0.1443152,82288.0,82287.0,0.1215963]
[1744371272096,0.1443152,82288.0,82287.0,0.39049902]
[1744371272289,0.14460209,82288.0,82287.0,0.43309902]
[1744371272994,5.401e-05,82294.0,82293.0,0.1215875]
[1744371273194,0.00018231,82299.0,82298.0,0.1215801]
[1744371273400,0.00018231,82299.0,82298.0,0.37450621]
[1744371273700,0.00018231,82299.0,82298.0,0.43308282]
[1744371273897,0.00022231,82299.0,82298.0,0.43308282]
[1744371274098,0.21617231,82307.0,82306.0,0.1215682]
[1744371274300,0.21617231,82307.0,82306.0,0.73529431]
[1744371274494,0.21617231,82307.0,82306.0,0.77789431]
[1744371274798,0.2161583,82307.0,82306.0,0.79387092]
[1744371276498,4e-05,82307.0,82306.0,0.79387092]
[1744371277996,0.1803748,82309.0,82308.0,0.1215653]
[1744371278196,0.1803748,82309.0,82308.0,0.37449141]
[1744371278395,0.1803748,82309.0,82308.0,0.43146802]
[1744371279407,0.10808442,82309.0,82308.0,0.43146802]
[1744371279997,0.10808442,82309.0,82308.0,0.47346802]
[1744371282903,0.10808442,82311.0,82310.0,0.1215623]
[1744371283098,0.10808442,82311.0,82310.0,0.22222526]
[1744371283398,0.10812442,82311.0,82310.0,0.43862545]
[1744371283706,0.10812442,82311.0,82310.0,0.45460206]
[1744371283905,0.10812442,82311.0,82310.0,0.47190267]
[1744371284100,0.10808442,82311.0,82310.0,0.47202901]
[1744371284300,0.10812442,82311.0,82310.0,0.47202901]
[1744371286805,4e-05,82311.0,82310.0,0.47202901]
[1744371287112,1e-07,82314.0,82310.0,0.75866671]
[1744371287415,0.00017937,82332.0,82325.0,0.23466315]
[1744371287606,0.1803748,82335.0,82334.0,0.1215269]
[1744371287910,0.1803748,82335.0,82334.0,0.37216666]
[1744371288209,0.1803748,82335.0,82334.0,0.45546666]
[1744371289513,0.1804148,82335.0,82334.0,0.45546666]
[1744371289726,0.1803748,82335.0,82334.0,0.45546666]
[1744371289925,0.1804148,82335.0,82334.0,0.45546666]
[1744371290818,0.1804148,82335.0,82334.0,0.47300606]
[1744371291319,0.1803748,82335.0,82334.0,0.47300606]
[1744371291726,0.0001822,82343.0,82337.0,0.1215225]
[1744371291923,0.0001822,82343.0,82337.0,0.71698565]
[1744371292125,0.0001822,82343.0,82337.0,0.79948565]
[1744371292325,0.0001822,82343.0,82337.0,0.81546226]
[1744371292326,0.00044,82338.0,82337.0,0.81546226]
[1744371292526,0.0004,82338.0,82337.0,0.81546226]
[1744371294330,0.0004,82338.0,82337.0,0.83285085]
[1744371294532,0.121921,82338.0,82337.0,0.01597661]
[1744371295022,0.201621,82338.0,82337.0,0.01597661]
[1744371296231,0.0391,82338.0,82337.0,0.37216226]
[1744371296424,0.0801,82338.0,82337.0,0.37216226]
[1744371296625,0.08014,82338.0,82337.0,0.41146226]
[1744371296933,0.0801,82338.0,82337.0,0.13749911]
[1744371297133,0.201621,82338.0,82337.0,0.13749911]
[1744371298928,0.0801,82338.0,82337.0,0.13749911]
[1744371299130,0.201621,82338.0,82337.0,0.13749911]
[1744371301737,0.201621,82338.0,82337.0,0.01597661]
[1744371301928,0.201621,82338.0,82312.0,0.360854]
[1744371301929,0.1215372,82327.0,82316.0,0.060776]
[1744371302232,0.4823372,82327.0,82321.0,0.121545]
[1744371302427,0.6070372,82327.0,82321.0,0.121545]
[1744371302628,0.6070372,82327.0,82322.0,0.1215446]
[1744371302832,0.6070372,82327.0,82324.0,0.1215406]
[1744371303031,0.6070372,82327.0,82324.0,0.1215409]
[1744371303232,0.6070372,82327.0,82322.0,0.0607716]
[1744371303628,0.6070372,82327.0,82323.0,0.121543]
[1744371304029,0.6070372,82327.0,82323.0,0.1215426]
[1744371304533,0.4855,82327.0,82326.0,0.05277251]
[1744371304737,0.0831,82327.0,82326.0,0.37337]
[1744371305037,0.0417,82337.0,82336.0,0.121524]
[1744371305229,0.0806,82337.0,82336.0,0.121524]
[1744371305430,0.0806,82337.0,82336.0,0.17411431]
[1744371305835,0.0806,82337.0,82336.0,0.35618715]
[1744371306138,0.2021225,82337.0,82336.0,0.35618715]
[1744371306338,0.2438625,82337.0,82336.0,0.35618715]
[1744371306537,0.2438625,82337.0,82336.0,0.39658715]
[1744371306937,0.2438225,82337.0,82336.0,0.43958715]
[1744371307236,0.2438625,82337.0,82336.0,0.45703581]
[1744371308434,0.08064,82337.0,82336.0,0.45703581]
[1744371308639,0.03894,82337.0,82336.0,0.45703581]
[1744371309030,0.0389,82337.0,82336.0,0.45703581]
[1744371309226,0.03894,82337.0,82336.0,0.45703581]
[1744371310241,4e-05,82337.0,82336.0,0.45703581]
[1744371310538,0.0004,82338.0,82337.0,0.1215225]
[1744371310736,0.0004,82338.0,82337.0,0.37363431]
[1744371310933,0.0004,82338.0,82337.0,0.45433431]
[1744371311739,0.121921,82338.0,82337.0,0.29311181]
[1744371312135,0.121921,82338.0,82337.0,0.37363431]
[1744371312440,0.205721,82338.0,82337.0,0.25211181]
[1744371312641,0.205721,82338.0,82337.0,0.37363431]
[1744371313039,0.205721,82338.0,82337.0,0.45423431]
[1744371314242,0.205721,82338.0,82337.0,0.41403431]
[1744371314634,0.205721,82338.0,82337.0,0.43064581]
[1744371315044,0.0004,82338.0,82337.0,0.43064581]
[1744371315431,0.0004,82338.0,82337.0,0.46974581]
[1744371315635,0.2208748,82346.0,82342.0,0.1215151]
[1744371315836,0.2208748,82346.0,82342.0,0.39023841]
[1744371316039,0.2208748,82346.0,82342.0,0.46873841]
[1744371316246,0.0002222,82343.0,82342.0,0.46806015]
[1744371316631,0.0001822,82343.0,82342.0,0.46806015]
[1744371316836,0.1217358,82343.0,82342.0,0.46806015]
[1744371317849,0.0002222,82343.0,82342.0,0.46806015]
[1744371318449,0.0427222,82343.0,82342.0,0.46806015]
[1744371318640,0.0427222,82343.0,82342.0,0.46830698]
[1744371319842,0.0427222,82343.0,82342.0,0.82925075]
[1744371320053,0.0427222,82343.0,82342.0,0.46845075]
[1744371321851,0.0427222,82343.0,82342.0,0.46873691]
[1744371322539,0.0002222,82343.0,82342.0,0.46873691]
[1744371323751,0.0002222,82343.0,82342.0,0.46893447]
[1744371324551,0.1217358,82343.0,82342.0,0.46893447]
[1744371324748,0.1217358,82343.0,82342.0,0.03425622]
[1744371324943,0.1217358,82343.0,82342.0,0.01684955]
[1744371325144,0.2241358,82343.0,82342.0,0.01684955]
[1744371326258,0.2161183,82353.0,82352.0,0.1215003]
[1744371326552,0.3608,82374.0,82352.0,0.1215003]
[1744371326553,0.2161183,82354.0,82353.0,0.1214989]
[1744371326753,0.2161183,82354.0,82353.0,0.19287852]
[1744371327055,0.2161183,82354.0,82353.0,0.49579122]
[1744371327242,0.2161183,82354.0,82353.0,0.4955813]
[1744371327558,0.2161183,82354.0,82353.0,0.47873175]
[1744371328559,0.2161183,82354.0,82353.0,0.49054939]
[1744371328739,0.2161583,82354.0,82353.0,0.49054939]
[1744371328941,0.2161583,82354.0,82353.0,0.47873175]
[1744371329154,0.2161583,82354.0,82353.0,0.47862395]
[1744371330457,4e-05,82354.0,82353.0,0.48787298]
[1744371331060,0.0508,82361.0,82360.0,0.1214885]
[1744371331253,0.0508,82361.0,82360.0,0.73371355]
[1744371331453,0.0508,82361.0,82360.0,0.83571355]
[1744371331756,0.0508,82361.0,82360.0,0.44612083]
[1744371331960,0.1214989,82353.0,82343.0,0.3608]
[1744371332254,0.0607469,82357.0,82352.0,0.37779688]
[1744371332460,0.2235949,82356.0,82353.0,0.01699688]
[1744371332751,0.1021,82356.0,82355.0,0.17408621]
[1744371332951,0.1021,82356.0,82355.0,0.37335979]
[1744371333149,4e-05,82357.0,82356.0,0.1214944]
[1744371333349,4e-05,82357.0,82356.0,0.37335829]
[1744371333552,4e-05,82357.0,82356.0,0.47875829]
[1744371333758,0.0516,82361.0,82360.0,0.1214885]
[1744371333957,0.1037,82361.0,82360.0,0.19127955]
[1744371334260,0.1037,82361.0,82360.0,0.24507955]
[1744371334552,0.1037,82361.0,82360.0,0.2452931]
[1744371334760,0.10374,82361.0,82360.0,0.2452931]
[1744371334953,0.10374,82361.0,82360.0,0.2968931]
[1744371336457,0.10374,82361.0,82360.0,0.29685366]
[1744371336846,0.10374,82361.0,82360.0,0.27947881]
[1744371337047,0.10374,82361.0,82360.0,0.29685352]
[1744371338159,0.05164,82361.0,82360.0,0.47892636]
[1744371338360,4e-05,82361.0,82360.0,0.47899344]
[1744371338549,0.00058136,82362.0,82361.0,0.1214871]
[1744371338550,0.05468136,82362.0,82361.0,0.1214871]
[1744371338754,0.05468136,82362.0,82361.0,0.37359204]
[1744371338951,0.05468136,82362.0,82361.0,0.47619204]
[1744371339558,0.00058136,82362.0,82361.0,0.47619204]
[1744371340356,0.00062136,82362.0,82361.0,0.47619204]
[1744371340565,0.00058136,82362.0,82361.0,0.47619204]
[1744371340863,0.00062136,82362.0,82361.0,0.47619204]
[1744371341064,0.05472136,82362.0,82361.0,0.47619204]
[1744371344174,0.05472136,82362.0,82361.0,0.49232857]
[1744371345162,0.17620696,82362.0,82361.0,0.18876863]
[1744371345365,0.17620696,82362.0,82361.0,0.08407832]
[1744371345565,0.22570696,82362.0,82361.0,0.20556542]
[1744371346767,0.22570696,82362.0,82361.0,0.01613653]
[1744371347065,0.22570696,82362.0,82361.0,0.13762363]
[1744371347372,0.22570696,82362.0,82361.0,0.01613653]
[1744371347762,0.22570696,82362.0,82361.0,0.13762363]
[1744371348863,0.22570696,82362.0,82361.0,0.20909176]
[1744371349068,0.22570696,82362.0,82361.0,0.19192363]
[1744371349272,0.22570696,82362.0,82361.0,0.20909205]
[1744371349666,0.00062136,82362.0,82361.0,0.20909205]
[1744371349867,4e-08,82379.0,82378.0,0.35612515]
[1744371350075,0.2161183,82382.0,82381.0,0.1214576]
[1744371350268,0.25095908,82387.0,82385.0,0.1214517]
[1744371350460,0.25095908,82387.0,82385.0,0.7502198]
[1744371350972,0.25095908,82387.0,82385.0,0.8516198]
[1744371351358,0.00044,82386.0,82385.0,0.83548327]
[1744371351561,0.05274,82386.0,82385.0,0.83548327]
[1744371352561,0.10694,82386.0,82385.0,0.83548327]
[1744371354473,0.00044,82386.0,82385.0,0.83548327]
[1744371354769,0.00044,82386.0,82385.0,0.85146701]
[1744371356270,0.1214576,82382.0,82379.0,0.1214592]
[1744371356470,0.1048,82381.0,82377.0,0.00018208]
[1744371356672,0.2262584,82381.0,82380.0,0.121459]
[1744371356972,0.2262584,82381.0,82380.0,0.15478238]
[1744371357360,0.2262584,82381.0,82380.0,0.13749884]
[1744371358967,0.5870584,82381.0,82380.0,0.13749884]
[1744371360377,0.2262584,82381.0,82380.0,0.13749884]
[1744371360575,0.1048,82381.0,82380.0,0.19279884]
[1744371360774,0.1048,82381.0,82380.0,0.24659884]
[1744371360967,0.2262576,82381.0,82380.0,0.24659884]
[1744371361371,0.2262576,82381.0,82380.0,0.19279884]
[1744371361571,0.2262976,82381.0,82380.0,0.19279884]
[1744371362076,0.182232,82361.0,82360.0,0.1214842]
[1744371362276,0.0607435,82361.0,82360.0,0.13900849]
[1744371362579,0.0528,82362.0,82361.0,0.1214871]
[1744371362773,0.0528,82362.0,82361.0,0.13901139]
[1744371363076,0.0528,82362.0,82361.0,0.19281139]
[1744371363476,0.0528,82362.0,82361.0,0.24861139]
[1744371363870,0.1742856,82362.0,82361.0,0.24861139]
[1744371364379,0.2286856,82362.0,82361.0,0.24861139]
[1744371364582,0.2286856,82362.0,82361.0,0.2310871]
[1744371368580,0.2286856,82362.0,82361.0,0.1772871]
[1744371373285,0.2286856,82362.0,82361.0,0.1214871]
[1744371373681,0.2286856,82362.0,82361.0,0.1731871]
[1744371374585,0.2286856,82362.0,82361.0,0.18933358]
[1744371376881,0.2819856,82362.0,82361.0,0.18933358]
[1744371377077,0.12165551,82370.0,82369.0,0.1214753]
[1744371377786,0.12165551,82370.0,82369.0,0.1772753]
[1744371377978,0.12165551,82370.0,82369.0,0.19342178]
[1744371378181,0.12169551,82370.0,82369.0,0.19342178]
[1744371378383,0.17619551,82370.0,82369.0,0.24502178]
[1744371378781,0.17619551,82370.0,82369.0,0.01614648]
[1744371378987,0.22799551,82370.0,82369.0,0.13762178]
[1744371379288,0.22799551,82370.0,82369.0,0.15499769]
[1744371379590,0.22799551,82370.0,82369.0,0.20659769]
[1744371380390,0.17619551,82370.0,82369.0,0.44367053]
[1744371380588,0.17615551,82370.0,82369.0,0.44367053]
[1744371380794,0.17619551,82370.0,82369.0,0.44367053]
[1744371381587,0.17619551,82370.0,82369.0,0.49626084]
[1744371382388,0.17619551,82370.0,82369.0,0.49643383]
[1744371382574,0.17619551,82370.0,82369.0,0.03369538]
[1744371382781,0.22779551,82370.0,82369.0,0.03369538]
[1744371382984,0.12149,82359.0,82358.0,0.0569]
[1744371383492,0.27889,82359.0,82358.0,0.0569]
[1744371383687,0.27889,82359.0,82358.0,0.1783915]
[1744371384281,0.27889,82359.0,82358.0,0.0569]
[1744371385893,0.27889,82359.0,82358.0,0.1783915]
[1744371386480,0.63969,82359.0,82358.0,0.1783915]
[1744371386990,0.27889,82359.0,82358.0,0.2325915]
[1744371391193,0.27889,82359.0,82358.0,0.1111]
[1744371392194,0.1214974,82354.0,82353.0,0.00018208]
[1744371392495,0.4822974,82354.0,82353.0,0.00018208]
[1744371392682,0.5882974,82354.0,82353.0,0.00018208]
[1744371394892,0.5882974,82354.0,82353.0,0.01754857]
[1744371395087,0.5882974,82354.0,82353.0,0.06994857]
[1744371395697,0.1214917,82358.0,82357.0,0.1822379]
[1744371395898,0.1214917,82358.0,82357.0,0.21598246]
[1744371396195,0.1215317,82358.0,82357.0,0.45064561]
[1744371396397,0.1215317,82358.0,82357.0,0.32915411]
[1744371396592,0.1737317,82358.0,82357.0,0.31178762]
[1744371396792,0.2306317,82358.0,82357.0,0.31178762]
[1744371396993,0.2306317,82358.0,82357.0,0.32918019]
[1744371397192,0.2306317,82358.0,82357.0,0.31178762]
[1744371397595,0.2306317,82358.0,82357.0,0.01637807]
[1744371398091,0.2306317,82358.0,82357.0,0.13787107]
[1744371398294,0.2306317,82358.0,82357.0,0.01637807]
[1744371398898,0.2306317,82358.0,82357.0,0.13787107]
[1744371400308,0.28970776,82358.0,82357.0,0.13787107]
[1744371400591,0.28970776,82358.0,82357.0,0.01637807]
[1744371401497,0.38050776,82358.0,82357.0,0.01637807]
[1744371402193,0.32360776,82358.0,82357.0,0.13787107]
[1744371402400,0.32360776,82358.0,82357.0,0.01637807]
[1744371402603,0.32356776,82358.0,82357.0,0.01637807]
[1744371403401,0.23280776,82358.0,82357.0,0.01637807]
[1744371403602,0.32360776,82358.0,82357.0,0.13787107]
[1744371403797,0.32360776,82358.0,82357.0,0.01637807]
[1744371405204,0.32360776,82358.0,82357.0,0.13787107]
[1744371405404,0.32360776,82358.0,82357.0,0.01637807]
[1744371405801,0.37690776,82358.0,82357.0,0.01637807]
[1744371406206,0.37690776,82358.0,82357.0,0.13787107]
[1744371406807,0.37690776,82358.0,82357.0,0.01637807]
[1744371407208,0.37690776,82358.0,82357.0,0.06967807]
[1744371407507,0.28610776,82358.0,82357.0,0.0533]
[1744371407700,0.28610776,82358.0,82357.0,0.174793]
[1744371407895,0.23280776,82358.0,82357.0,0.174793]
[1744371408200,0.18060776,82358.0,82357.0,0.174793]
[1744371408411,0.05911606,82358.0,82357.0,0.40945615]
[1744371408608,0.05907606,82358.0,82357.0,0.47757433]
[1744371408801,0.05911606,82358.0,82357.0,0.47757433]
[1744371409509,0.18060756,82358.0,82357.0,0.47757433]
[1744371410211,0.18060756,82358.0,82357.0,0.53083556]
[1744371411513,0.1215315,82358.0,82357.0,0.53083556]
[1744371411711,0.1215315,82358.0,82357.0,0.46265615]
[1744371412012,0.1215315,82358.0,82357.0,0.47912622]
[1744371412013,0.1730315,82358.0,82357.0,0.47912622]
[1744371413103,0.1730315,82358.0,82357.0,0.47913111]
[1744371413799,0.1214974,82354.0,82353.0,0.00018208]
[1744371414116,0.4822974,82354.0,82353.0,0.00018208]
[1744371414307,0.5900974,82354.0,82353.0,0.00018208]
[1744371414815,0.5900974,82354.0,82353.0,0.13797836]
[1744371415106,0.1214974,82354.0,82353.0,0.37264151]
[1744371415607,0.1730974,82354.0,82353.0,0.42704151]
[1744371415807,0.2294374,82354.0,82353.0,0.48004151]
[1744371416004,0.2294374,82354.0,82353.0,0.35854261]
[1744371416209,0.2294374,82354.0,82353.0,0.06947946]
[1744371416421,0.2294374,82354.0,82353.0,0.17468098]
[1744371416810,0.2294374,82354.0,82353.0,0.05318208]
[1744371417421,0.1778374,82354.0,82353.0,0.22908098]
[1744371417715,4e-05,82354.0,82353.0,0.46374413]
[1744371417904,0.23992456,82354.0,82353.0,0.46374413]
[1744371418101,0.23988456,82354.0,82353.0,0.46374413]
[1744371418304,0.23992456,82354.0,82353.0,0.46374413]
[1744371418715,0.36142196,82354.0,82353.0,0.46374413]
[1744371419107,0.41452196,82354.0,82353.0,0.22908098]
[1744371419310,0.47012196,82354.0,82353.0,0.05318208]
[1744371419612,0.47012196,82354.0,82353.0,0.17468098]
[1744371421012,0.47012196,82354.0,82353.0,0.00018208]
[1744371421317,0.47012196,82354.0,82353.0,0.12168098]
[1744371421707,0.47012196,82354.0,82353.0,0.13799225]
[1744371422109,0.47012196,82354.0,82353.0,0.24769225]
[1744371422419,0.47012196,82354.0,82353.0,0.23138098]
[1744371422608,0.47012196,82354.0,82353.0,0.24769255]
[1744371422809,0.47012196,82354.0,82353.0,0.07119365]
[1744371423125,0.47012196,82354.0,82353.0,0.05488208]
[1744371424212,0.47012196,82354.0,82353.0,0.00018208]
[1744371424915,0.1215107,82345.0,82339.0,0.00048579]
[1744371425224,0.121518,82340.0,82339.0,0.12200379]
[1744371425916,0.121518,82340.0,82339.0,0.23160379]
[1744371426422,0.18061535,82354.0,82347.0,0.1215077]
[1744371426619,0.05907705,82354.0,82347.0,0.35617085]
[1744371426819,0.00022208,82348.0,82347.0,0.35617085]
[1744371427423,0.00022208,82348.0,82347.0,0.46467085]
[1744371430720,0.14467043,82352.0,82351.0,0.1215018]
[1744371430923,0.14467043,82352.0,82351.0,0.71696495]
[1744371431328,0.14471043,82352.0,82351.0,0.71696495]
[1744371431914,0.14471043,82352.0,82351.0,0.35616495]
[1744371432226,0.14467043,82352.0,82351.0,0.35616495]
[1744371432430,0.14471043,82352.0,82351.0,0.35616495]
[1744371433126,0.14471043,82352.0,82351.0,0.51836495]
[1744371435926,0.14471043,82352.0,82351.0,0.53436469]
[1744371437026,0.14471043,82352.0,82351.0,0.49530285]
[1744371437230,0.26621073,82352.0,82351.0,0.38870285]
[1744371437527,0.1215403,82352.0,82351.0,0.44290285]
[1744371437728,0.1768403,82352.0,82351.0,0.44290285]
[1744371437930,0.1768403,82352.0,82351.0,0.49450285]
[1744371438230,0.1768403,82352.0,82351.0,0.47850311]
[1744371438430,0.2331403,82352.0,82351.0,0.47847125]
[1744371438727,0.2331403,82352.0,82346.0,4e-05]
[1744371438728,0.1215077,82347.0,82346.0,4e-05]
[1744371438923,0.1215077,82347.0,82346.0,0.13807981]
[1744371439119,0.1215151,82342.0,82341.0,0.0543]
[1744371439321,0.1215151,82342.0,82341.0,0.01653168]
[1744371439521,0.2855151,82342.0,82341.0,0.13804828]
[1744371440129,0.2855151,82342.0,82341.0,0.13794945]
[1744371440326,0.121518,82340.0,82339.0,0.00053979]
[1744371440527,0.121518,82340.0,82339.0,0.00048579]
[1744371440723,0.233718,82340.0,82339.0,0.00052579]
[1744371441233,0.233718,82340.0,82339.0,0.12204529]
[1744371442131,0.0607642,82333.0,82321.0,9.841e-05]
[1744371442329,0.5952299,82332.0,82324.0,0.1215405]
[1744371442522,0.5952299,82332.0,82331.0,0.00018208]
[1744371442718,0.5952299,82332.0,82331.0,0.00022208]
[1744371443025,0.1215417,82324.0,82323.0,5.4e-05]
[1744371443543,0.1215535,82316.0,82311.0,0.00013286]
[1744371443828,0.5728735,82316.0,82315.0,0.2910529]
[1744371444016,0.5728735,82316.0,82315.0,0.2910129]
[1744371444331,0.5728735,82316.0,82315.0,0.2910529]
[1744371444531,0.4823535,82316.0,82315.0,0.2910529]
[1744371444831,0.5886535,82316.0,82315.0,0.4126079]
[1744371445033,0.3608,82325.0,82324.0,0.1215417]
[1744371445227,0.4823402,82325.0,82324.0,0.1215417]
[1744371445427,0.0607735,82321.0,82316.0,0.1054]
[1744371445734,0.1215497,82319.0,82318.0,0.35621365]
[1744371446029,0.0549,82320.0,82319.0,0.121549]
[1744371446229,0.0549,82320.0,82319.0,0.177749]
[1744371446230,0.1764476,82320.0,82319.0,0.177749]
[1744371446422,0.2278476,82320.0,82319.0,0.229849]
[1744371446731,0.2278476,82320.0,82319.0,0.173649]
[1744371447128,0.2278476,82320.0,82315.0,0.2910129]
[1744371447129,0.1215653,82308.0,82303.0,5.4e-05]
[1744371447336,0.1215712,82304.0,82303.0,5.4e-05]
[1744371447530,0.1215712,82304.0,82303.0,0.1215727]
[1744371447730,0.1215712,82304.0,82303.0,0.1216127]
[1744371448133,0.1215712,82304.0,82303.0,4e-05]